Cogmind - Beta 15 @@@ ROGUE MODE // 2025.08.11 @ 23:50:14 // Winter2019/RPGLIKE Player: bugsniper Result: Destroyed by Y-64 Sentinel with Wave Gun Performance ------------- Evolutions (5) 2500 Regions Visited (5) 1000 Robots Destroyed (70) 350 Value Destroyed (2657) 2657 Prototype IDs (11) 220 Alien Tech Used (0) 0 Bonus (1449) 1449 TOTAL SCORE: 8176 Bonus ------- High Alert Combat Kills 95 Follower Combat Kills 559 Registered with UFD 300 Met Optimus in HQ 500 Friendly Fire -5 Cogmind --------- Core Integrity 0/650 Matter 300/300 Energy 505/505 System Corruption 5% Temperature Cool (11) Movement Treading (161) Location -5/Factory Parts ------- > --- POWER (2) -------- Improved Deuterium Engine Neutrino Core > --- PROPULSION (3) --- Armored Treads Advanced Treads Armored Medium Treads > --- UTILITY (5) ------ Targeting Computer Hardened Light Armor Plating Focal Shield Makeshift Hacking Suite High-powered Tractor Beam > --- WEAPON (3) ------- Gauss Rifle Coil Gun KE Penetrator > --- INVENTORY (3) ---- Flak Gun Thermal Lance PL-3XN's Ring of Power Peak State ------------ > --- POWER ------------ Improved Deuterium Engine Neutrino Core > --- PROPULSION ------- Armored Treads Advanced Treads Armored Medium Treads > --- UTILITY ---------- Targeting Computer Hardened Light Armor Plating Focal Shield Makeshift Hacking Suite High-powered Tractor Beam > --- WEAPON ----------- Gauss Rifle Coil Gun Thermal Lance > --- INVENTORY -------- Flak Gun PL-3XN's Ring of Power [Rating: 57] Favorites ----------- Power Light Ion Engine Engine Light Ion Engine Power Core Neutrino Core Propulsion Light Treads Treads Light Treads Leg Aluminum Leg Utility Scrap Shield Device High-powered Tractor Beam Processor Improved Targeting Computer Hackware Makeshift Hacking Suite Protection Scrap Shield Weapon Improved Light Cannon Energy Gun Small Laser Ballistic Gun Flak Gun Ballistic Cannon Improved Light Cannon Launcher Subdweller Shrapnel Launcher Piercing Weapon Thermal Lance Build | -11 -10 -10 -7 -7 -5 ------- Run | Yrd Mat Sub Rec Scr Fac Slots Evolved 9 | 2 2 2 1 . 2 Power 1 | . . . . . 1 Propulsion 2 | 1 1 . . . . Utility 4 | . . 2 1 . 1 Weapon 2 | 1 1 . . . . Parts Attached 39 | 3 8 5 2 16 5 Power 3 | . . . . 2 1 Engine 2 | . . . . 2 . Core 1 | . . . . . 1 Reactor . | . . . . . . Propulsion 9 | 2 1 . . 5 1 Treads 9 | 2 1 . . 5 1 Leg . | . . . . . . Wheel . | . . . . . . Hover . | . . . . . . Flight . | . . . . . . Utility 12 | . 1 2 1 6 2 Device 6 | . . 1 . 3 2 Storage . | . . . . . . Processor 2 | . 1 . . 1 . Hackware 1 | . . . . 1 . Protection 3 | . . 1 1 1 . Artifact . | . . . . . . Weapon 15 | 1 6 3 1 3 1 Energy Gun 1 | 1 . . . . . Energy Cannon . | . . . . . . Ballistic Gun 8 | . 3 1 1 2 1 Ballistic Cannon 3 | . 3 . . . . Launcher 2 | . . 2 . . . Special Weapon . | . . . . . . Impact Weapon . | . . . . . . Slashing Weapon . | . . . . . . Piercing Weapon 1 | . . . . 1 . Special Melee Weapon . | . . . . . . Unidentified Prototypes 1 | . . . . . 1 Parts Lost . | . . . . . . Power . | . . . . . . Propulsion . | . . . . . . Utility . | . . . . . . Weapon . | . . . . . . Highest Loss Streak . | . . . . . . To Critical Strikes . | . . . . . . Average Backups 1 | . . 1 1 1 1 Power . | . . . . . . Propulsion . | . . . . . . Utility . | . . . . . . Weapon 1 | . . 1 1 1 1 Tool/Special . | . . . . . . Unused Backups 5 | . 2 1 . 2 . Power 1 | . 1 . . . . Propulsion . | . . . . . . Utility . | . . . . . . Weapon 4 | . 1 1 . 2 . Tool/Special . | . . . . . . Average Slot Usage (%) 91 | . 97 90 90 89 100 Engine 9 | . 12 10 9 9 7 Treads 28 | . 33 30 28 27 24 Device 6 | . . 3 9 9 11 Processor 4 | . 10 7 . 2 7 Hackware 1 | . . . . . 7 Protection 11 | . . 9 12 15 7 Ballistic Gun 13 | . 4 . 9 24 23 Ballistic Cannon 12 | . 32 25 15 2 . Launcher 2 | . . 5 4 . . Peak Build Rating 57 | 5 12 16 21 40 57 Average Rating 24 | 4 11 15 17 29 47 On Entrance 15 | 3 5 12 16 21 35 Naked Turns . | . . . . . . Heaviest Build 52 | 6 15 39 45 52 45 Greatest Support 69 | 40 60 60 60 62 69 Greatest Overweight (x) . | . . . . . . Average Overweight (x) . | . . . . . . Largest Inventory Capacity 3 | . 1 1 2 2 3 Average Capacity 1 | . 1 1 1 2 2 Most Carried 3 | . 1 1 2 2 3 Average Carried 1 | . . . 1 1 2 Final Capacity 3 | 1 1 1 2 2 3 Final Carried 3 | . 1 1 2 2 3 Class Distribution -------------------- 38% | Gunner 33% | Derelict-Gunner 17% | Subdweller-Tank 6% | Subdweller-Gunner Dominant Class ---------------- Gunner | -10/Materials Gunner | -10/Subcaves Subdweller-Tank | -7/Recycling Derelict-Gunner | -7/Scraptown Derelict-Gunner | -5/Factory Resources | -11 -10 -10 -7 -7 -5 ----------- Run | Yrd Mat Sub Rec Scr Fac Matter Collected 2777 | 230 225 640 479 374 829 Remotely 1154 | . . . . 325 829 Salvage Created 3318 | . 452 189 727 372 1578 Parts 113 | . 15 17 9 8 64 Haulers Intercepted 2 | . 2 . . . . Recyclers Shooed 8 | . 1 . 3 . 4 Parts Field Recycled . | . . . . . . Retrieved Matter . | . . . . . . Parts Self-Destructed 17 | . . 5 . 12 . Prevented . | . . . . . . Kills | -11 -10 -10 -7 -7 -5 ------- Run | Yrd Mat Sub Rec Scr Fac Combat Hostiles Destroyed 48 | . 4 20 2 6 16 Guns 24 | . . 1 1 6 16 Cannons 10 | . 4 5 1 . . AOE 14 | . . 14 . . . Classes Destroyed 14 | . 3 3 . 3 5 Worker 3 | . . . . . 3 Builder 1 | . . . . . 1 Hauler 2 | . 2 . . . . Recycler 15 | . 3 . 8 . 4 Watcher 1 | . . . . . 1 Swarmer 6 | . . 6 . . . Grunt 10 | . 4 . . . 6 Brawler 1 | . . . . 1 . Sentry 6 | . . 1 2 . 3 Hunter 2 | . . . . . 2 Programmer 5 | . . . . . 5 Subdweller 13 | . . 13 . . . Ranger 2 | . . . . 2 . Guru 1 | . . . . 1 . Thug 2 | . . . . 2 . Best Kill Streak 13 | . 4 7 8 1 13 Combat Bots Only 8 | . 3 7 1 1 8 Max Kills in Single Turn 2 | . 2 2 2 1 2 Gunslinging . | . . . . . . Exploded 2 | . . 2 . . . Melee . | . . . . . . Uniques/NPCs Destroyed . | . . . . . . Combat | -11 -10 -10 -7 -7 -5 -------- Run | Yrd Mat Sub Rec Scr Fac Hostile Shots Fired 205 | . 5 55 36 11 98 Missed 71 | . 2 22 9 3 35 Hits 134 | . 3 33 27 8 63 Melee 1 | . . . . 1 . Projectile 133 | . 3 33 27 7 63 Critical Strikes 3 | . . . . 2 1 Damage Taken 2542 | . 38 975 184 117 1228 Core 1770 | . 29 620 115 99 907 Absorbed by Shields . | . . . . . . Redirected to Core 1509 | . 29 503 90 52 835 Ignored by Resistances 249 | . . 58 32 18 141 Core Remaining (%) 100 | 100 . . . 100 . Volleys Fired 198 | . 20 49 54 15 60 Largest 3 | . 3 3 3 3 3 Hottest 99 | . 99 99 96 86 91 Shots Fired 426 | . 42 87 85 40 172 Gun 236 | . . 3 21 40 172 Cannon 158 | . 42 53 63 . . Launcher 32 | . . 31 1 . . Special . | . . . . . . Kinetic 399 | . 42 60 85 40 172 Thermal . | . . . . . . Explosive 27 | . . 27 . . . Electromagnetic . | . . . . . . Robot Hit Streak 27 | . 7 27 15 14 9 Robot Miss Streak 4 | . 1 2 2 2 4 Penetration Max 2 | . . . . . 2 Secondary Targets 2 | . . . . 1 1 Max Gunslinging Chain 1 | . . . . 1 1 Shots Hit Robots 270 | . 20 55 37 32 126 Core Hits 162 | . 10 30 17 28 77 Critical Kills 1 | . . . . . 1 Critical Parts Destroyed 3 | . . . . . 3 Critical Strikes 9 | . 2 2 1 . 4 Destroy 4 | . . . . . 4 Blast 5 | . 2 2 1 . . Melee Attacks 8 | . . . . 4 4 Thermal 8 | . . . . 4 4 Impact . | . . . . . . Slashing . | . . . . . . Piercing . | . . . . . . Sneak Attacks . | . . . . . . Combat Hostiles . | . . . . . . Follow-up Attacks . | . . . . . . Damage Inflicted 8255 | . 425 2668 840 680 3642 Guns 4475 | . . 56 318 680 3421 Cannons 1734 | . 425 801 508 . . Explosions 2032 | . . 1811 . . 221 Melee . | . . . . . . Ramming 14 | . . . 14 . . Kinetic 6209 | . 425 857 826 680 3421 Thermal 221 | . . . . . 221 Explosive 1811 | . . 1811 . . . Electromagnetic . | . . . . . . Impact . | . . . . . . Slashing . | . . . . . . Piercing . | . . . . . . Highest Corruption 5 | . . . . . 5 Average Corruption 4 | . . . . . 4 Corruption Purged . | . . . . . . Corruption Blocked . | . . . . . . Effects 6 | . . . . . 6 Message Errors 1 | . . . . . 1 Heat Flow Errors 1 | . . . . . 1 Energy Discharges 1 | . . . . . 1 Data Loss (minor) 2 | . . . . . 2 Weapon Failures 1 | . . . . . 1 Overload Shots . | . . . . . . Overflow Damage 92 | . 13 47 32 . . Projectiles 68 | . 13 23 32 . . Explosions 24 | . . 24 . . . Melee . | . . . . . . Knockbacks 15 | . 2 8 5 . . Impact . | . . . . . . Kinetic 15 | . 2 8 5 . . Secondary . | . . . . . . Self-Inflicted Damage 339 | . . 299 . . 40 Shots 9 | . . 8 . . 1 Rammed 2 | . . . 2 . . Targets Rammed 2 | . . . 2 . . Kicked . | . . . . . . Crushed . | . . . . . . Highest Temperature 331 | . 112 . 193 331 213 Average Temperature 69 | . 34 . 71 95 60 Received Heat Transfer 501 | . 21 108 72 45 255 Effects 2 | . . . . 2 . Interference 2 | . . . . 2 . Siege Activations . | . . . . . . Martial Activations . | . . . . . . Shielding Activations . | . . . . . . Robots Disrupted . | . . . . . . Combat Hostiles . | . . . . . . Robots Corrupted . | . . . . . . Combat Hostiles . | . . . . . . Parts Fried . | . . . . . . Impact Corruptions . | . . . . . . Robots Melted . | . . . . . . Combat Hostiles . | . . . . . . Parts Melted 1 | . . . . 1 . Heat Transferred 250 | . . . . . 250 Parts Sabotaged . | . . . . . . Parts Stolen . | . . . . . . Parts Stripped . | . . . . . . Power Chain Reactions . | . . . . . . Alert | -11 -10 -10 -7 -7 -5 ------- Run | Yrd Mat Sub Rec Scr Fac Maximum Alert Level 3 | . . . . . 3 Low Security (%) 93 | 100 100 . 100 . 84 Level 1 2 | . . . . . 4 Level 2 3 | . . . . . 8 Level 3 1 | . . . . . 3 Level 4 . | . . . . . . Level 5 . | . . . . . . High Security . | . . . . . . Max Security . | . . . . . . Peak Influence 741 | . 87 . 81 . 741 Initial 40 | . . . 40 . . Average 64 | . 24 . 50 . 100 Influence Increases 2153 | . 256 305 415 110 1067 Destroy 0b10 Robot/C 860 | . 80 140 40 100 500 Destroy 0b10 Robot/NC 120 | . 25 . 50 . 45 Destroy Leader 156 | . 34 . . . 122 Allied During Kill 60 | . . . . 10 50 Successful Hack 33 | . 9 . 6 . 18 Disable Machine 570 | . 60 . 300 . 210 Destroy Structure 144 | . 3 . 19 . 122 Lose Combat Pursuer 210 | . 45 165 . . . Influence Decreases 1418 | . 209 266 465 42 436 Entered New Map 209 | . . 23 46 36 104 Time Decay 1189 | . 209 243 419 6 312 Lost Ally 20 | . . . . . 20 Squads Dispatched 14 | . 3 . . . 11 Investigation 2 | . 1 . . . 1 Extermination 2 | . . . . . 2 Reinforcement 6 | . 2 . . . 4 Assault 1 | . . . . . 1 Garrison 3 | . . . . . 3 Intercept . | . . . . . . Searches Triggered . | . . . . . . Construction Impeded 1 | . . . . . 1 Haulers Reinforced . | . . . . . . Active Scanning Responses . | . . . . . . Cargo Convoy Interrupts . | . . . . . . Stealth | -11 -10 -10 -7 -7 -5 --------- Run | Yrd Mat Sub Rec Scr Fac Distress Signals 6 | . 1 . . . 5 Communications Jammed . | . . . . . . Distress Signals . | . . . . . . Times Spotted 85 | . 10 26 2 17 30 Peak Tracking Total 7 | . 4 4 1 5 7 Tactical Retreats 5 | . 1 4 . . . Traps | -11 -10 -10 -7 -7 -5 ------- Run | Yrd Mat Sub Rec Scr Fac Traps Triggered 5 | . 1 4 . . . Indirectly . | . . . . . . Trap Hack Attempts . | . . . . . . Triggered . | . . . . . . Disarmed . | . . . . . . Reprogrammed . | . . . . . . Reused . | . . . . . . Traps Extracted . | . . . . . . Installed . | . . . . . . Triggered . | . . . . . . Machines | -11 -10 -10 -7 -7 -5 ---------- Run | Yrd Mat Sub Rec Scr Fac Machines Disabled 42 | . 4 1 20 3 14 Max in Single Turn 6 | . 1 1 1 1 6 Machines Repaired . | . . . . . . Machines Dismantled . | . . . . . . Machines Sabotaged . | . . . . . . Overloaded Fab Kills . | . . . . . . Hacking | -11 -10 -10 -7 -7 -5 --------- Run | Yrd Mat Sub Rec Scr Fac Machines Accessed 19 | . 2 3 7 1 6 Terminals 10 | . 2 . 4 . 4 Fabricators 1 | . . . . . 1 Repair Stations 1 | . . . . . 1 Recycling Units 3 | . . . 3 . . Scanalyzers . | . . . . . . Garrison Access . | . . . . . . Total Hacks 41 | . 4 7 12 1 17 Successful 25 | . 3 7 8 1 6 Failed 16 | . 1 . 4 . 11 Catastrophic . | . . . . . . Database Lockouts . | . . . . . . Manual 10 | . . . 2 . 8 Terminals 27 | . 4 . 9 . 14 Fabricators 2 | . . . . . 2 Repair Stations 1 | . . . . . 1 Recycling Units 3 | . . . 3 . . Scanalyzers . | . . . . . . Garrison Access . | . . . . . . Terminal Hacks 19 | . 3 7 4 1 4 Record 5 | . . 5 . . . Prototype ID Bank 2 | . 1 . 1 . . Open Door 1 | . . 1 . . . Terminal Index 2 | . . . 1 . 1 Locate Traps 1 | . 1 . . . . Maintenance Status 2 | . . . 1 . 1 Registered Components 1 | . . . . . 1 Zone Layout 3 | . 1 . 1 . 1 Proto ID Catalog 1 | . . . . 1 . Release Object 1 | . . 1 . . . Fabricator Hacks . | . . . . . . Repair Station Hacks . | . . . . . . Recycling Unit Hacks 2 | . . . 2 . . Retrieve Components 2 | . . . 2 . . Scanalyzer . | . . . . . . Garrison Access Hacks . | . . . . . . Unauthorized Hacks 4 | . . . 2 . 2 Terminals 2 | . . . 2 . . Track 1 | . . . 1 . . Botnet 1 | . . . 1 . . Fabricators 1 | . . . . . 1 Haulers 1 | . . . . . 1 Repair Stations 1 | . . . . . 1 Mechanics 1 | . . . . . 1 Recycling Units . | . . . . . . Scanalyzers . | . . . . . . Garrison Access . | . . . . . . Data Cores Recovered . | . . . . . . Used . | . . . . . . Hacking Detections 10 | . 1 . 4 . 5 Full Trace Events 1 | . . . . . 1 Feedback Events . | . . . . . . Feedback Blocked . | . . . . . . Robot Schematics Acquired . | . . . . . . Robots Built . | . . . . . . Authchips . | . . . . . . Time . | . . . . . . Total Robot Build Rating . | . . . . . . Part Schematics Acquired . | . . . . . . Parts Built . | . . . . . . Authchips . | . . . . . . Time . | . . . . . . Total Part Build Rating . | . . . . . . Parts Repaired . | . . . . . . Time . | . . . . . . Parts Recycled . | . . . . . . Recycled Matter . | . . . . . . Retrieved Matter . | . . . . . . Retrieved Components 6 | . . . 6 . . Parts Scanalyzed . | . . . . . . Part Schematics Acquired . | . . . . . . Parts Damaged . | . . . . . . Bothacking | -11 -10 -10 -7 -7 -5 ------------ Run | Yrd Mat Sub Rec Scr Fac Used RIF Installer . | . . . . . . Robots Hacked . | . . . . . . Non-combat . | . . . . . . Combat . | . . . . . . Robot Hacks Applied . | . . . . . . Relay Couplers Released . | . . . . . . Fabnet Peak Effective % . | . . . . . . Robots Rewired . | . . . . . . Allies Hacked . | . . . . . . Hacks Repelled . | . . . . . . Allies | -11 -10 -10 -7 -7 -5 -------- Run | Yrd Mat Sub Rec Scr Fac Total Allies 1 | . . . . 1 . Largest Group 1 | . . . . 1 1 Highest-Rated Group 88 | . . . . 88 73 Highest-Rated Ally 88 | . . . . 88 73 Total Orders . | . . . . . . Ally Attacks 53 | . . . . 11 42 Total Damage 1511 | . . . . 332 1179 Kills 14 | . . . . 5 9 Allies Corrupted . | . . . . . . Allies Melted 8 | . . . . 8 . Intel | -11 -10 -10 -7 -7 -5 ------- Run | Yrd Mat Sub Rec Scr Fac Active Infowar (turns) 751 | . . 751 . . . Optics 751 | . . 751 . . . Robot Analysis Total . | . . . . . . Derelict Logs Recovered 4 | . . 1 . 3 . Drone Launches . | . . . . . . Drone Recoveries . | . . . . . . Exploration | -11 -10 -10 -7 -7 -5 ------------- Run | Yrd Mat Sub Rec Scr Fac Turns Passed 10456 | 27 643 3366 1053 4142 1225 Spaces Moved 5990 | 15 351 1978 565 2493 588 Core . | . . . . . . Treads 5987 | 12 351 1978 565 2493 588 Legs 3 | 3 . . . . . Wheels . | . . . . . . Hover . | . . . . . . Flight . | . . . . . . Fastest Speed 120 | 120 160 160 160 158 158 Average Speed 159 | 152 160 160 160 158 159 Slowest Speed 163 | 160 160 160 160 163 161 Overloaded Moves . | . . . . . . Propulsion Burnouts . | . . . . . . Robots Hopped . | . . . . . . Potential Cave-ins 1 | . . 1 . . . Cave-ins Triggered . | . . . . . . Exploration Rate (%) 58 | 1 67 83 91 92 17 Regions Visited 5 Branch Regions 3 Pre-discovered Areas 1 | . . . . 1 . Known Exits Taken 1 | . . . . 1 . Unknown Exits Taken 4 | 1 1 1 1 . . Scrap Searched 13 | . . 6 . 7 . Spaces Dug 95 | . . 89 . 2 4 Terrain Destroyed 343 | . 3 245 20 4 71 Melee 6 | . . . . 2 4 Projectile 15 | . 3 2 2 2 6 AOE 322 | . . 243 18 . 61 Terrain Rammed . | . . . . . . Walls Destroyed . | . . . . . . Machines Disabled . | . . . . . . Actions | -11 -10 -10 -7 -7 -5 --------- Run | Yrd Mat Sub Rec Scr Fac Total 6533 | 18 397 2103 637 2644 734 Wait 152 | . 13 40 4 41 54 Move 5985 | 14 350 1977 564 2492 588 Hop . | . . . . . . Pick Up 16 | . 1 3 1 10 1 Fast Attach 31 | 3 8 3 2 12 3 Attach 1 | . . . . . 1 Detach . | . . . . . . Swap 30 | . . 10 4 8 8 Drop 39 | 1 5 5 1 24 3 Fire 198 | . 20 49 54 15 60 Melee 8 | . . . . 4 4 Ram . | . . . . . . Kick . | . . . . . . Crush 2 | . . . 2 . . Escape Stasis . | . . . . . . Rewire . | . . . . . . Trap . | . . . . . . Miscellaneous 71 | . . 16 5 38 12 Route ------- -11/Scrapyard -10/Materials (discovered 4 exits: [*Mat x2] / [*Min] / *Sub) -10/Subcaves (discovered 3 exits: [*Mat x2] / *Rec) -7/Recycling -7/Scraptown (discovered 2 exits: *Fac x2) -5/Factory (discovered 1 exit: [*Fac]) History --------- Turn | Location | Event 1 | -11/Scrapyard | Discovered new exit (range 1) 5 | -11/Scrapyard | Upgraded with Propulsion slot (x1) 17 | -11/Scrapyard | Upgraded with Weapon slot (x1) 28 | -11/Scrapyard | Entered Materials 48 | -10/Materials | Upgraded with Weapon slot (x1) 277 | -10/Materials | Upgraded with Propulsion slot (x1) 296 | -10/Materials | Discovered new exit (range 14) 338 | -10/Materials | Build established: Gunner 368 | -10/Materials | Discovered new exit (range 7) 467 | -10/Materials | Discovered new exit (range 10) 652 | -10/Materials | Discovered new exit (range 7) 671 | -10/Materials | Entered Subcaves 673 | -10/Subcaves | Reached level 2 844 | -10/Subcaves | Shifting Twisted Machinery released Sub. Machine Gun 936 | -10/Subcaves | Shifting Twisted Machinery released Scrap Shield 938 | -10/Subcaves | Shifting Twisted Machinery released Sub. Optics 942 | -10/Subcaves | Upgraded with Utility slot (x1) 942 | -10/Subcaves | Upgraded with Utility slot (x1) 1031 | -10/Subcaves | Discovered new exit (range 10) 1192 | -10/Subcaves | Visited Clippyterm 1197 | -10/Subcaves | Learned Research security intel 1820 | -10/Subcaves | Ambushed by Subdweller buried in earth 1850 | -10/Subcaves | Core integrity fell below 50% 1876 | -10/Subcaves | Destroyed 7 combat bots 2725 | -10/Subcaves | Discovered new exit (range 11) 2836 | -10/Subcaves | Learned Materials emergency access door positions 3404 | -10/Subcaves | Build established: Subdweller-Tank 3956 | -10/Subcaves | Discovered new exit (range 10) 4008 | -10/Subcaves | Ambushed by Subdweller buried in earth 4037 | -10/Subcaves | Entered Recycling 4039 | -7/Recycling | Reached level 3 4483 | -7/Recycling | Reached level 4 4736 | -7/Recycling | Upgraded with Utility slot (x1) 4858 | -7/Recycling | Core integrity fell below 20% 5054 | -7/Recycling | Scanned before Scraplab entrance 5076 | -7/Recycling | Entered Scraplab 5089 | -7/Recycling | Discovered new exit (range 2) 5090 | -7/Recycling | Entered Scraptown 5170 | -7/Scraptown | Visited Spacefarers 5207 | -7/Scraptown | Visited Comm Corps 5229 | -7/Scraptown | Build established: Subdweller-Gunner 5347 | -7/Scraptown | Scanned Subdweller tech in exchange for log data 5351 | -7/Scraptown | Learned Research emergency access door positions 5352 | -7/Scraptown | Learned location of Warlord (-5) 5354 | -7/Scraptown | Learned Factory trap positions 5450 | -7/Scraptown | Discovered new exit (range 11) 5928 | -7/Scraptown | Build established: Gunner 6053 | -7/Scraptown | Visited SPCMW 6086 | -7/Scraptown | Visited Supply Room 6506 | -7/Scraptown | Visited Artisan Demo Area 6587 | -7/Scraptown | Visited UFD Registry 6587 | -7/Scraptown | Registered with UFD as "Metacircuit" 6619 | -7/Scraptown | Visited IN-MT5's Study 6707 | -7/Scraptown | Visited DA-N13 Charitable Foundation 6714 | -7/Scraptown | Found DCF Scrap (30 items) 6839 | -7/Scraptown | Visited Science Guys 6895 | -7/Scraptown | Visited Botcube Research 6996 | -7/Scraptown | Visited Research Penetration Think Tank 7029 | -7/Scraptown | Visited Curators Association 7033 | -7/Scraptown | Build established: Derelict-Gunner 7117 | -7/Scraptown | Delivered Scrap Shield to a Scientist 7279 | -7/Scraptown | Visited Scrap Suit Storage 7323 | -7/Scraptown | Visited Science Testing Area 7931 | -7/Scraptown | Guru changed UFD alias to "Protoshell" 8548 | -7/Scraptown | Met Optimus 8548 | -7/Scraptown | Reached level 5 8548 | -7/Scraptown | Accepted into 0bPrime 8619 | -7/Scraptown | Visited Observation Area 8682 | -7/Scraptown | Visited Derelict Rescue Squad 8685 | -7/Scraptown | Civil war broke out across Scraptown 8759 | -7/Scraptown | Identified exit to Factory 8776 | -7/Scraptown | Lost 9 allies 8792 | -7/Scraptown | Found Lrg. Botcube 8824 | -7/Scraptown | Lrg. Botcube activated 8853 | -7/Scraptown | Optimus destroyed in the chaos of civil war 8872 | -7/Scraptown | Found Thermal Lance 8985 | -7/Scraptown | Found PL-3XN's Ring of Power 9232 | -7/Scraptown | Entered Factory 9232 | -5/Factory | Accompanied by 1 ally 9233 | -5/Factory | Loaded intel: 76 trap records 9234 | -5/Factory | Reached level 6 9434 | -5/Factory | Discovered new exit (range 11) 9466 | -5/Factory | Upgraded with Power slot (x1) 9855 | -5/Factory | Reached level 7 9861 | -5/Factory | Upgraded with Utility slot (x1) 10245 | -5/Factory | Garrison activated, responded to threat 10268 | -5/Factory | Reached level 8 10299 | -5/Factory | Core integrity fell below 50% 10328 | -5/Factory | Core integrity fell below 20% 10370 | -5/Factory | Destroyed 8 combat bots 10416 | -5/Factory | Reached level 9 10432 | -5/Factory | First assault squad dispatched 10457 | -5/Factory | Destroyed by Y-64 Sentinel with Wave Gun Last Messages --------------- 10435_ R-10 Processor collects Hpw. Shock Rifle. 10436_ U-05 Engineer builds a Wall. 10441_ U-05 Engineer lays Concrete. 10443_ U-05 Engineer builds a Wall. 10445_ K-01 Serf collects debris. 10447_ R-10 Processor collects Flexi-carbon Leg. 10447_ U-05 Engineer lays Concrete. 10448_ W-25 Informer sends out distress signal. 10449_ System corrupted: Component data lost. 10449_ U-05 Engineer builds a Wall. 10450_ R-10 Processor collects Wheel. 10452_ K-01 Serf collects debris. 10454_ R-10 Processor collects Sml. Matter Pod. 10454_ U-05 Engineer lays Concrete. 10454_ Penetrated by Slug. 10455_ Slug penetrates Y-64 Sentinel. 10455_ U-05 Engineer lays Concrete. 10455_ K-01 Serf collects debris. 10456_ Acquired 12 matter. 10456_ U-05 Engineer builds a Wall. Map ----- +----------------------------------------------------+ | ?????????????????????????????????????????????????? | | ?????????????????????????????????????????????????? | | ?????????????????????????????????????????????????? | | ?????????????????????????????????????????????????? | | ?????????????????????????????????????????????????? | | ?????????????????????????????????????????????????? | | ?????????????????????????????????????????????????? | | ?????????????????????????????????????????????????? | | ?????????????????????????????????????????????????? | | ?????????????????????????????????????!???????????? | | ????????????????????????#????????????????????????? | | ????????????????????????;#####???????????????????? | | ????????????????????????k ???????????????????? | | ???????????????????????#Y #???????????????????? | | ???????????????????????# #?+#????????????????? | | ???????????????????????# +? ?????????????????? | | ???????????????????????# # ??????????????????? | | ???????????????????????#k # ??????????????????? | | ???????????????????????+ +???????????????????? | | ???????????????????????# #???????????????????? | | ???????????????????????# #???????????????????? | | ???????????????????????# #???????????????????? | | ???????????????????????# #???????????????????? | | ???????????????????????#u #???????????????????? | | ???????????????????????# #???????????????????? | | ???????????????????????# @ #???????????????????? | | ???????????????????????# #???????????????????? | | ?????????????????? ????# #???????????????????? | | ???????????????* ??# #########???????????? | | ?????????????Y%=! # ## #???????????? | | ????????????? ! ; ; ##???????????? | | ???????????^ ; k ;;""""""##??????????? | | ????????????^ !%= #??????????? | | ????????????? ; == #??????????? | | ?????????????? ; R%% #??????????? | | ????????????? ; #??????????? | | ?????????????? # # #??????????? | | ????A????????? # u# #??????????? | | ??????????????? # # #??????????? | | ??????????????? ##### # #??????????? | | ???????????????? ????# # #???????#### | | ???????????????????????# #"""""""########## | | ???????????????????????# ##" "" | | ???????????????????????# ?## T | | ???????????????????????# ??# % | | ???????????????????????# A ??# %#######+## | | ???????????????????????? ???# # ### | | ???????????????????????????????# # """" ## | | ???????????????????????????????# # """" ## | | ???????????????????????????????# # """" ## | +----------------------------------------------------+ Best States ------------- Heat Dissipation 49 Coolant Potential 65 Energy Generation 30 Energy Capacity 505 Matter Stores 300 Matter Capacity 300 Sight Range 21 Terrain Scan Density 10 Armor Coverage 950 Resistance: KI 20 Resistance: TH 15 Evasion (%) 40 Targeting Accuracy 6 Recoil Reduction 3 Offensive Hacking 16 Defensive Hacking 5 Item Schematics ----------------- None Robot Schematics ------------------ None Fabricated ------------ Nothing Repaired ---------- Nothing Alien Tech Used ----------------- None Achievements -------------- None Challenges ------------ None RPGLIKE | -11 -10 -10 -7 -7 -5 --------- Run | Yrd Mat Sub Rec Scr Fac Levels Raised 8 | . . 1 2 1 4 XP Earned 15680 | 3000 850 1700 2700 1494 5936 XP Spent 13245 | 1250 1600 1600 2625 1600 4570 Upgrades 31 | 3 2 4 8 4 10 Power Slot 1 | . . . . . 1 Propulsion Slot 2 | 1 1 . . . . Utility Slot 4 | . . 2 1 . 1 Weapon Slot 2 | 1 1 . . . . Core Integrity 1 | . . . 1 . . Heat Dissipation 4 | . . . . . 4 Inventory Capacity 3 | 1 . . 1 . 1 Ranged Accuracy 2 | . . . . 1 1 Hack Attack % 1 | . . . 1 . . Hack Defense % 1 | . . . 1 . . KI Resistance % 3 | . . 1 . 1 1 TH Resistance % 3 | . . 1 . 1 1 KI Damage % 2 | . . . 1 1 . TH Damage % 1 | . . . 1 . . EX Damage % 1 | . . . 1 . . Protomatter Created 369 | . . 77 33 45 214 Integrity Restored 1407 | . . 198 99 855 255 Core 1118 | . . 198 99 566 255 Parts 289 | . . . . 289 . Protomatter Decayed 7742 | . . 37 . 7491 214 Game ------ Seed TiamatGravitonLoader Manual? 0 Play Time 01:23:07 Cumulative 438.5 hours Start 2025.08.11 @ 03:36:14 End 2025.08.11 @ 23:50:14 Sessions 4 Manual Loads 0 Difficulty Rogue Special Mode Winter2019/RPGLIKE Game No. 254 Rogue 254 Adventurer 0 Explorer 0 Win Type - Total 11 Types 10/0/1/0/0/0/0/0/0/0 Lore% 73 Gallery% 67 Achievement% 53 Wizard Run 0 Options --------- Layout 1 ASCII 0 Keyboard 0 Movement Numpad Keybinds 0 Fullscreen 1 Font 24/Smallcaps Map View 50x35 Zoom Use 0% Tactical HUD 1 Map Filters NONE Filters NONE Steam 1 RUN: 20f00514-7327-4c51-804f-4f1625a5ec1a